Cogmind - Beta 16 @@@ ROGUE MODE // 2026.01.26 @ 15:35:06 Player: applejuice Result: Destroyed by G-34 Mercenary with Small Laser Performance ------------- Evolutions (0) 0 Regions Visited (2) 400 Robots Destroyed (15) 75 Value Destroyed (229) 229 Prototype IDs (0) 0 Alien Tech Used (0) 0 Bonus (0) 0 TOTAL SCORE: 704 Bonus ------- None Cogmind --------- Core Integrity 0/250 Matter 212/300 Energy 100/100 System Corruption 0% Temperature Cool (15) Movement Core (200) Ox3 Location -10/Mines Parts ------- > --- POWER (1) -------- (None) > --- PROPULSION (2) --- (None) > --- UTILITY (2) ------ Medium Storage Unit > --- WEAPON (2) ------- Light Assault Rifle Light Assault Rifle > --- INVENTORY (10) --- Light Nuclear Core Aluminum Leg Targeting Computer Grenade Launcher Mining Laser Peak State ------------ > --- POWER ------------ Light Nuclear Core > --- PROPULSION ------- Aluminum Leg Aluminum Leg > --- UTILITY ---------- Small Storage Unit Seismic Detector > --- WEAPON ----------- Assault Rifle Assault Rifle > --- INVENTORY -------- Light Ion Engine Light Nuclear Core Aluminum Leg Aluminum Leg Medium Laser Light Assault Rifle Grenade Launcher Mining Laser [Rating: 10] Favorites ----------- Power Light Nuclear Core Engine Light Ion Engine Power Core Light Nuclear Core Propulsion Aluminum Leg Leg Aluminum Leg Utility Seismic Detector Device Seismic Detector Storage Small Storage Unit Weapon Assault Rifle Energy Gun Medium Laser Ballistic Gun Assault Rifle Build | -11 -10 -10 ------- Run | Yrd Mat Min Slots Evolved . | . . . Power . | . . . Propulsion . | . . . Utility . | . . . Weapon . | . . . Parts Attached 14 | 8 . 6 Power 2 | 1 . 1 Engine 1 | 1 . . Core 1 | . . 1 Reactor . | . . . Propulsion 4 | 2 . 2 Treads . | . . . Leg 4 | 2 . 2 Wheel . | . . . Hover . | . . . Flight . | . . . Utility 3 | 2 . 1 Device 1 | 1 . . Storage 2 | 1 . 1 Processor . | . . . Hackware . | . . . Protection . | . . . Artifact . | . . . Weapon 5 | 3 . 2 Energy Gun 1 | 1 . . Energy Cannon . | . . . Ballistic Gun 4 | 2 . 2 Ballistic Cannon . | . . . Launcher . | . . . Special Weapon . | . . . Impact Weapon . | . . . Slashing Weapon . | . . . Piercing Weapon . | . . . Special Melee Weapon . | . . . Unidentified Prototypes . | . . . Parts Lost 6 | . . 6 Power 1 | . . 1 Propulsion 2 | . . 2 Utility 1 | . . 1 Weapon 2 | . . 2 Highest Loss Streak 6 | . . 6 To Critical Strikes . | . . . Average Backups 5 | 1 2 6 Power . | . . 1 Propulsion 1 | . . 1 Utility . | . . . Weapon 3 | 1 2 3 Tool/Special . | . . . Unused Backups 4 | . . 4 Power 1 | . . 1 Propulsion . | . . . Utility 1 | . . 1 Weapon 2 | . . 2 Tool/Special . | . . . Average Slot Usage (%) 97 | . 100 96 Engine 2 | . 14 1 Core 11 | . . 12 Leg 27 | . 28 27 Device 12 | . 14 12 Storage 14 | . 14 14 Ballistic Gun 27 | . 28 27 Peak Build Rating 10 | 7 7 10 Average Rating 8 | 5 7 9 On Entrance 4 | . 7 7 Avg Prop Armor Cover (%) . | . . . Naked Turns . | . . . Heaviest Build 20 | 13 13 20 Greatest Support 20 | 20 20 20 Greatest Overweight (x) 1 | 1 . 1 Average Overweight (x) . | . . . Largest Inventory Capacity 10 | 8 8 10 Average Capacity 8 | 7 8 8 Most Carried 8 | 2 3 8 Average Carried 5 | 1 2 6 Final Capacity 10 | 8 8 10 Final Carried 5 | 2 3 5 Class Distribution -------------------- 100% | Mutant Dominant Class ---------------- Mutant | -10/Materials Mutant | -10/Mines Resources | -11 -10 -10 ----------- Run | Yrd Mat Min Matter Collected 525 | 324 . 201 Remotely . | . . . Salvage Created 413 | 167 . 246 Parts 39 | 18 . 21 Haulers Intercepted . | . . . Recyclers Shooed 1 | . . 1 Parts Field Recycled . | . . . Retrieved Matter . | . . . Parts Self-Destructed . | . . . Prevented . | . . . Parts Restored . | . . . Kills | -11 -10 -10 ------- Run | Yrd Mat Min Combat Hostiles Destroyed 9 | . . 9 Guns 9 | . . 9 Classes Destroyed 4 | 2 . 2 Tunneler 5 | 4 . 1 Recycler 1 | 1 . . Swarmer 6 | . . 6 Grunt 3 | . . 3 Best Kill Streak 6 | 5 . 6 Combat Bots Only 5 | . . 5 Max Kills in Single Turn 2 | 2 . 1 Gunslinging . | . . . Exploded . | . . . Melee . | . . . Uniques/NPCs Destroyed . | . . . Combat | -11 -10 -10 -------- Run | Yrd Mat Min Hostile Shots Fired 109 | . . 109 Missed 33 | . . 33 Hits 76 | . . 76 Melee 3 | . . 3 Projectile 73 | . . 73 Critical Strikes 3 | . . 3 Part Disruptions 1 | . . 1 Damage Taken 967 | . . 967 Core 256 | . . 256 Absorbed by Shields . | . . . Core Remaining (%) 100 | 100 . . Volleys Fired 61 | 13 . 48 Largest 2 | 2 . 2 Hottest 40 | 40 . 40 Shots Fired 115 | 26 . 89 Gun 115 | 26 . 89 Cannon . | . . . Launcher . | . . . Special . | . . . Kinetic 115 | 26 . 89 Thermal . | . . . Explosive . | . . . Electromagnetic . | . . . Robot Hit Streak 13 | 6 . 13 Robot Miss Streak 4 | 3 . 4 Penetration Max . | . . . Secondary Targets . | . . . Shots Hit Robots 69 | 14 . 55 Core Hits 23 | 6 . 17 Critical Kills . | . . . Critical Parts Destroyed . | . . . Critical Strikes . | . . . Melee Attacks . | . . . Impact . | . . . Slashing . | . . . Piercing . | . . . Sneak Attacks . | . . . Combat Hostiles . | . . . Follow-up Attacks . | . . . Damage Inflicted 838 | 211 . 627 Guns 824 | 211 . 613 Cannons . | . . . Explosions . | . . . Melee . | . . . Ramming 14 | . . 14 Kinetic 824 | 211 . 613 Thermal . | . . . Explosive . | . . . Electromagnetic . | . . . Impact . | . . . Slashing . | . . . Piercing . | . . . Highest Corruption . | . . . Average Corruption . | . . . Corruption Purged . | . . . Corruption Blocked . | . . . Overload Shots . | . . . Overflow Damage . | . . . Projectiles . | . . . Explosions . | . . . Melee . | . . . Knockbacks . | . . . Impact . | . . . Kinetic . | . . . Secondary . | . . . Self-Inflicted Damage . | . . . Shots . | . . . Rammed . | . . . Targets Rammed 5 | . . 5 Kicked 5 | . . 5 Crushed . | . . . Highest Temperature 37 | . . 37 Average Temperature 7 | . . 7 Received Heat Transfer 439 | . . 439 Siege Activations . | . . . Martial Activations . | . . . Shielding Activations . | . . . Robots Disrupted . | . . . Combat Hostiles . | . . . Robots Corrupted . | . . . Combat Hostiles . | . . . Parts Fried . | . . . Impact Corruptions . | . . . Robots Melted . | . . . Combat Hostiles . | . . . Parts Melted . | . . . Heat Transferred . | . . . Parts Sabotaged . | . . . Parts Stolen . | . . . Parts Stripped . | . . . Power Chain Reactions . | . . . Alert | -11 -10 -10 ------- Run | Yrd Mat Min Maximum Alert Level . | . . . Low Security (%) 100 | 100 100 100 Level 1 . | . . . Level 2 . | . . . Level 3 . | . . . Level 4 . | . . . Level 5 . | . . . High Security . | . . . Max Security . | . . . Peak Influence 125 | 15 13 125 Initial . | . . . Average 37 | 2 1 48 Influence Increases 323 | 25 13 285 Destroy 0b10 Robot/C 180 | . . 180 Destroy 0b10 Robot/NC 30 | 25 . 5 Destroy Leader 40 | . . 40 Successful Hack 13 | . 13 . Lose Combat Pursuer 60 | . . 60 Influence Decreases 323 | 25 10 288 Entered New Map 3 | . . 3 Time Decay 290 | 25 10 255 Lost Part 30 | . . 30 Squads Dispatched 1 | . 1 . Investigation . | . . . Extermination . | . . . Reinforcement 1 | . 1 . Assault . | . . . Garrison . | . . . Intercept . | . . . Searches Triggered . | . . . Construction Impeded . | . . . Haulers Reinforced . | . . . Active Scanning Responses . | . . . Cargo Convoy Interrupts . | . . . Stealth | -11 -10 -10 --------- Run | Yrd Mat Min Distress Signals . | . . . Communications Jammed . | . . . Distress Signals . | . . . Times Spotted 17 | . . 17 Peak Tracking Total 4 | . . 4 Tactical Retreats 3 | . . 3 Traps | -11 -10 -10 ------- Run | Yrd Mat Min Traps Triggered . | . . . Indirectly . | . . . Trap Hack Attempts . | . . . Triggered . | . . . Disarmed . | . . . Reprogrammed . | . . . Reused . | . . . Traps Extracted . | . . . Installed . | . . . Triggered . | . . . Machines | -11 -10 -10 ---------- Run | Yrd Mat Min Machines Disabled . | . . . Max in Single Turn . | . . . Machines Repaired . | . . . Machines Dismantled . | . . . Machines Sabotaged . | . . . Overloaded Fab Kills . | . . . Hacking | -11 -10 -10 --------- Run | Yrd Mat Min Machines Accessed 1 | . 1 . Terminals 1 | . 1 . Fabricators . | . . . Repair Stations . | . . . Recycling Units . | . . . Scanalyzers . | . . . Garrison Access . | . . . Total Hacks 4 | . 4 . Successful 2 | . 2 . Failed 2 | . 2 . Catastrophic . | . . . Database Lockouts . | . . . Manual 2 | . 2 . Terminals 4 | . 4 . Fabricators . | . . . Repair Stations . | . . . Recycling Units . | . . . Scanalyzers . | . . . Garrison Access . | . . . Terminal Hacks 2 | . 2 . Robot Analysis 1 | . 1 . Branch Access Points 1 | . 1 . Fabricator Hacks . | . . . Repair Station Hacks . | . . . Recycling Unit Hacks . | . . . Scanalyzer . | . . . Garrison Access Hacks . | . . . Unauthorized Hacks . | . . . Terminals . | . . . Fabricators . | . . . Repair Stations . | . . . Recycling Units . | . . . Scanalyzers . | . . . Garrison Access . | . . . Data Cores Recovered . | . . . Used . | . . . Hacking Detections 1 | . 1 . Full Trace Events . | . . . Feedback Events . | . . . Feedback Blocked . | . . . Robot Schematics Acquired . | . . . Robots Built . | . . . Authchips . | . . . Time . | . . . Total Robot Build Rating . | . . . Part Schematics Acquired . | . . . Parts Built . | . . . Authchips . | . . . Time . | . . . Total Part Build Rating . | . . . Part Studies Acquired . | . . . Parts Repaired . | . . . Time . | . . . Parts Recycled . | . . . Recycled Matter . | . . . Retrieved Matter . | . . . Retrieved Components . | . . . Parts Scanalyzed . | . . . Part Schematics Acquired . | . . . Parts Damaged . | . . . Bothacking | -11 -10 -10 ------------ Run | Yrd Mat Min Used RIF Installer . | . . . Robots Hacked . | . . . Non-combat . | . . . Combat . | . . . Robot Hacks Applied . | . . . Relay Couplers Released . | . . . Fabnet Peak Effective % . | . . . Robots Rewired . | . . . Allies Hacked . | . . . Hacks Repelled . | . . . Allies | -11 -10 -10 -------- Run | Yrd Mat Min Total Allies . | . . . Largest Group . | . . . Highest-Rated Group . | . . . Highest-Rated Ally . | . . . Total Orders . | . . . Ally Attacks . | . . . Total Damage . | . . . Kills . | . . . Allies Corrupted . | . . . Allies Melted . | . . . Intel | -11 -10 -10 ------- Run | Yrd Mat Min Active Infowar (turns) 677 | 35 54 588 Seismic 677 | 35 54 588 Robot Analysis Total 1 | . 1 . Derelict Logs Recovered 1 | . . 1 Drone Launches . | . . . Drone Recoveries . | . . . Exploration | -11 -10 -10 ------------- Run | Yrd Mat Min Turns Passed 835 | 131 54 650 Spaces Moved 490 | 68 45 377 Core 5 | 5 . . Treads . | . . . Legs 485 | 63 45 377 Wheels . | . . . Hover . | . . . Flight . | . . . Fastest Speed 50 | 50 120 120 Average Speed 119 | 116 120 120 Slowest Speed 190 | 120 120 190 Overloaded Moves . | . . . Propulsion Burnouts . | . . . Robots Hopped . | . . . Potential Cave-ins . | . . . Cave-ins Triggered . | . . . Exploration Rate (%) 33 | 3 16 80 Regions Visited 2 Branch Regions 1 Pre-discovered Areas . | . . . Known Exits Taken 1 | . 1 . Unknown Exits Taken 1 | 1 . . Scrap Searched 1 | . . 1 Spaces Dug . | . . . Terrain Destroyed . | . . . Melee . | . . . Projectile . | . . . AOE . | . . . Terrain Rammed . | . . . Walls Destroyed . | . . . Machines Disabled . | . . . Actions | -11 -10 -10 --------- Run | Yrd Mat Min Total 622 | 90 45 487 Wait 41 | . . 41 Move 488 | 67 44 377 Hop . | . . . Pick Up 8 | 1 1 6 Fast Attach 8 | 8 . . Attach 3 | . . 3 Detach 1 | 1 . . Swap 4 | . . 4 Drop 3 | . . 3 Fire 61 | 13 . 48 Melee . | . . . Ram . | . . . Kick 5 | . . 5 Crush . | . . . Escape Stasis . | . . . Rewire . | . . . Trap . | . . . Miscellaneous . | . . . Route ------- -11/Scrapyard -10/Materials -10/Mines (discovered 3 exits: [*Mat x2] / [*Sub]) History --------- Turn | Location | Event 9 | -11/Scrapyard | Discovered new exit (range 15) 132 | -11/Scrapyard | Entered Materials 155 | -10/Materials | Discovered new exit (range 16) 168 | -10/Materials | Identified exit to Mines 186 | -10/Materials | Entered Mines 239 | -10/Mines | Discovered new exit (range 6) 271 | -10/Mines | Discovered new exit (range 11) 294 | -10/Mines | Learned Materials terminal intel 307 | -10/Mines | Met a Derelict bent on vengeance 308 | -10/Mines | Build established: Mutant 468 | -10/Mines | Discovered new exit (range 3) 699 | -10/Mines | Assembled infested the area 769 | -10/Mines | Core integrity fell below 50% 818 | -10/Mines | Core integrity fell below 20% 836 | -10/Mines | Destroyed by G-34 Mercenary with Small Laser Last Messages --------------- 00625_ Found 43 Matter. 00626_ Acquired 9 matter. 00627_ Dropped Med. Laser. 00628_ Acquired Targeting Computer. 00630_ Dropped Sml. Storage Unit. 00664_ Kicked T-07 Excavator. 00699_ ALERT: Infestation in the mines, dispatching Demolisher response squad. 00714_ Kicked T-07 Excavator. 00729_ Kicked U-05 Engineer. 00762_ Aluminum Leg severed. 00772_ Critical hit (Burn: +37). 00774_ Kicked G-47 Trooper out of the way. 00774_ Seismic Detector destroyed. 00791_ Assault Rifle destroyed. 00804_ Lgt. Nuclear Core destroyed. 00811_ Critical hit (Burn: +37). 00814_ Aluminum Leg destroyed. 00815_ Assault Rifle destroyed. 00823_ Aluminum Leg destroyed. Map ----- +----------------------------------------------------+ | ???????????????????# ##????# #?# ####### ### | | ???????????????????# #?????# ### ##????# | | ?????????????????? ##?????# #???? | | ?????????????????### ##??????## ### #???# ### | | ???????????????????# ?????????#%#?? #???# ##??# | | ???????????????????# ?????????# #?? #???## #???# | | ???????????????????# ?????????# #?? #????# #??## | | ???????????????????# ?#???###?# #?? #???## #### | | ??????????????????? ?# ### ## #?? #???# | | ??????????????????? ?# ### ##### ##### | | ?????????????????? ?#### ## #???## | | ?????????????????? ?????## ####### #????## | | ?????????????????? ??????## #?????# #?????? | | ?????????????????? ???????## #?????# ##????? | | ???????????????????? ???????## ##????## ##???? | | ??????????????????????????### ##?????# ##??? | | ?????????????????????????## #??????# #### | | ????????????????????????## #???#### """ | | ???????????????????????## ##??## """ | | ??????????????????????## ###???# """ | | ??????????????????????# ####?????# | | ??????????????????????# ##????????# | | ?????????????????????## #?????????## # | | ?????????????????##### #??????????## ### # | | ?????????##% #####g g #???????????### #??# # | | ?????????# = ## @#?????????????###???# # | | ?????????# ## ##?????????????????### # | | ?????????# ######## ####?????????????### # | | ?????????# ???????# #????????????## | | ?????????# ????????## #??????????## """ | | ????????# ??????????# ##????????### """ | | ????????# ???????????# ##????????## """ | | ????????## ???????????## ##????????## | | ?????????#?????????????####?????????# # | | ???????????????????????????????????## ## ### | | ???????????????????????????????????# #?# #?? | | ???????????????????????????????????# #??# ### | | ??????????????????????????????####?# ##??# | | ?????????????????????????????## ### ## #???# ### | | ???????????####?????????????## !%## ## #???# #?# | | ??????####################### <=* ## #???# #?# | | ?????## "# ^ ## ##### ##### #?# | | ?????# ## ^# ##???# #?# | | ?????# ## # # #### #????# #######?# | | ##???## #"" " # #??## ##????# #???????# | | #<##### ##" " # ^ ##???#####?????# ######### | | # ## ##??????????????# | | %^ ### ##???????????????# | | #####?# #????????????????######### | | # # #######?????## #???????????????????????# | +----------------------------------------------------+ Best States ------------- Heat Dissipation 25 Energy Generation 14 Energy Capacity 160 Matter Stores 300 Matter Capacity 300 Sight Range 16 Terrain Scan Density 10 Evasion (%) 55 Item Schematics ----------------- None Robot Schematics ------------------ None Fabricated ------------ Nothing Repaired ---------- Nothing Studied --------- None Alien Tech Used ----------------- None Achievements -------------- None Challenges ------------ None Game ------ Seed GravmagTiamatJets Manual? 0 Play Time 00:06:00 Cumulative 31.0 hours Start 2026.01.26 @ 15:28:45 End 2026.01.26 @ 15:35:06 Sessions 1 Manual Loads 0 Difficulty Rogue Special Mode None Game No. 35 Rogue 35 Adventurer 0 Explorer 0 Win Type - Total 0 Types 0/0/0/0/0/0/0/0/0/0 Lore% 29 Gallery% 30 Achievement% 26 Wizard Run 0 Options --------- Layout 1 ASCII 0 Keyboard 1 Movement Numpad Keybinds 0 Fullscreen 1 Font 48/Smallcaps Map View 50x35 Zoom Use 0% Tactical HUD 1 Map Filters NONE Filters NONE Steam 1 RUN: 6e47ed37-6103-45af-b52a-2f1920ab89ea